fUSD/lending_fUSD_20250322
["ID","MTS","AMOUNT","RATE_DAILY","PERIOD"]
[356542667,1742637064195,-500.0,0.00047671,120]
[356542668,1742637064204,-526.69826532,0.00047671,120]
[356542669,1742637064214,-815.59,0.00047671,120]
[356542670,1742637064223,-500.0,0.00047671,120]
[356542671,1742637064233,-564.59,0.00047671,120]
[356542672,1742637064243,-500.0,0.00047671,120]
[356542673,1742637064252,-500.0,0.00047671,120]
[356542674,1742637064262,-500.0,0.00047671,120]
[356542675,1742637064272,-500.0,0.00047671,120]
[356542676,1742637064282,-500.0,0.00047671,120]
[356542677,1742637064291,-629.6,0.00047671,120]
[356542678,1742637064301,-1219.87,0.00047671,120]
[356542679,1742637064311,-214.73872684,0.00047671,120]
[356542680,1742637064321,-511.1,0.00047671,120]
[356542681,1742637064334,-500.0,0.00047671,120]
[356542682,1742637064344,-500.0,0.00047671,120]
[356542683,1742637064353,-500.0,0.00047671,120]
[356542684,1742637064363,-500.0,0.00047671,120]
[356542685,1742637064373,-973.06,0.00047671,120]
[356542686,1742637064382,-500.0,0.00047671,120]
[356542687,1742637064392,-624.39,0.00047671,120]
[356542688,1742637064403,-500.0,0.00047671,120]
[356542689,1742637064414,-500.0,0.00047671,120]
[356542690,1742637064424,-1923.34,0.00047671,120]
[356542691,1742637064434,-500.0,0.00047671,120]
[356542692,1742637064444,-820.19,0.00047671,120]
[356542693,1742637064454,-564.23,0.00047671,120]
[356542694,1742637064463,-665.21,0.00047671,120]
[356542695,1742637064473,-500.0,0.00047671,120]
[356542696,1742637064482,-500.0,0.00047671,120]
[356542697,1742637064497,-1241.85,0.00047671,120]
[356542698,1742637064507,-500.0,0.00047671,120]
[356542699,1742637064516,-500.0,0.00047671,120]
[356542700,1742637064525,-619.76,0.00047671,120]
[356542701,1742637064535,-500.0,0.00047671,120]
[356542702,1742637064545,-500.0,0.00047671,120]
[356542703,1742637064554,-591.13,0.00047671,120]
[356542704,1742637064563,-500.0,0.00047671,60]
[356542705,1742637064573,-500.0,0.00047671,120]
[356542706,1742637064582,-500.0,0.00047671,120]
[356542707,1742637064591,-611.96,0.00047671,120]
[356542708,1742637064601,-500.0,0.00047671,120]
[356542709,1742637064611,-645.8,0.00047671,120]
[356542710,1742637064620,-529.2,0.00047671,120]
[356542711,1742637064630,-500.0,0.00047671,120]
[356542712,1742637064639,-601.81,0.00047671,120]
[356542713,1742637064648,-641.64,0.00047671,120]
[356542714,1742637064658,-640.55,0.00047671,120]
[356542715,1742637064667,-500.0,0.00047671,120]
[356542716,1742637064677,-500.0,0.00047671,120]
[356542717,1742637064687,-627.71,0.00047671,120]
[356542718,1742637064696,-701.19,0.00047671,120]
[356542719,1742637064706,-1353.99,0.00047671,120]
[356542720,1742637064715,-500.0,0.00047671,120]
[356542721,1742637064725,-500.0,0.00047671,120]
[356542722,1742637064734,-500.0,0.00047671,120]
[356542723,1742637064744,-500.0,0.00047671,120]
[356542724,1742637064754,-658.79,0.00047671,120]
[356542725,1742637064763,-500.0,0.00047671,120]
[356542726,1742637064773,-1518.81,0.00047671,120]
[356542727,1742637064783,-500.0,0.00047671,120]
[356542728,1742637064793,-1579.16,0.00047671,120]
[356542729,1742637064803,-500.0,0.00047671,120]
[356542730,1742637064812,-500.0,0.00047671,120]
[356542731,1742637064822,-842.72,0.00047671,120]
[356542732,1742637064832,-500.0,0.00047671,120]
[356542733,1742637064841,-500.0,0.00047671,120]
[356542734,1742637064851,-1920.4,0.00047671,120]
[356542735,1742637064861,-500.0,0.00047671,120]
[356542736,1742637064870,-500.0,0.00047671,120]
[356542737,1742637064880,-500.0,0.00047671,120]
[356542738,1742637064890,-500.0,0.00047671,120]
[356542739,1742637064899,-5245.81,0.00047671,120]
[356542740,1742637064909,-500.0,0.00047671,120]
[356542741,1742637064918,-500.0,0.00047671,120]
[356542742,1742637064927,-2131.02,0.00047671,120]
[356542743,1742637064937,-500.0,0.00047671,120]
[356542744,1742637064947,-983.72,0.00047671,120]
[356542745,1742637064956,-500.0,0.00047671,120]
[356542746,1742637064966,-500.0,0.00047671,120]
[356542747,1742637064975,-500.0,0.00047671,120]
[356542748,1742637064985,-1445.99,0.00047671,120]
[356542749,1742637064994,-585.87,0.00047671,120]
[356542750,1742637065003,-689.75,0.00047671,120]
[356542751,1742637065013,-500.0,0.00047671,120]
[356542752,1742637065022,-500.0,0.00047671,120]
[356542753,1742637065032,-846.6,0.00047671,120]
[356542754,1742637065044,-587.36,0.00047671,120]
[356542755,1742637065054,-635.78,0.00047671,120]
[356542756,1742637065063,-1413.44,0.00047671,120]
[356542757,1742637065073,-4235.9,0.00047671,2]
[356542758,1742637065082,-500.0,0.00047671,120]
[356542759,1742637065091,-500.0,0.00047671,120]
[356542760,1742637065100,-500.0,0.00047671,120]
[356542761,1742637065109,-1454.51,0.00047671,120]
[356542762,1742637065119,-500.0,0.00047671,120]
[356542763,1742637065128,-500.0,0.00047671,120]
[356542764,1742637065138,-500.0,0.00047671,120]
[356542765,1742637065147,-970.54,0.00047671,120]
[356542766,1742637065157,-586.12,0.00047671,120]
[356542767,1742637065166,-500.0,0.00047671,120]
[356542768,1742637065176,-635.48,0.00047671,120]
[356542769,1742637065186,-647.73,0.00047671,120]
[356542770,1742637065196,-996.39,0.00047671,120]
[356542771,1742637065206,-1824.31,0.00047671,120]
[356542772,1742637065215,-833.59,0.00047671,120]
[356542773,1742637065224,-500.0,0.00047671,120]
[356542774,1742637065234,-500.0,0.00047671,120]
[356542775,1742637065243,-809.31,0.00047671,120]
[356542776,1742637065252,-2000.27,0.00047671,120]
[356542777,1742637065262,-1128.13,0.00047671,120]
[356542778,1742637065271,-205.85,0.00047671,7]
[356542779,1742637065282,-2750.71,0.00047671,120]
[356542780,1742637065291,-500.0,0.00047671,120]
[356542781,1742637065302,-500.0,0.00047671,120]
[356542782,1742637065311,-500.0,0.00047671,120]
[356542783,1742637065321,-972.4,0.00047671,120]
[356542784,1742637065335,-912.87,0.00047671,120]
[356542785,1742637065344,-3375.17,0.00047671,120]
[356542786,1742637065354,-558.47,0.00047671,120]
[356542787,1742637065364,-1367.27,0.00047671,120]
[356542788,1742637065374,-743.38,0.00047671,120]
[356542789,1742637065384,-520.84,0.00047671,120]
[356542790,1742637065394,-500.0,0.00047671,120]
[356542791,1742637065404,-1219.57,0.00047671,120]
[356542792,1742637065414,-500.0,0.00047671,120]
[356542793,1742637065423,-2818.72,0.00047671,120]
[356542794,1742637065433,-500.0,0.00047671,120]
[356542795,1742637065443,-825.87,0.00047671,120]
[356542796,1742637065452,-500.0,0.00047671,120]
[356542797,1742637065462,-635.13,0.00047671,120]
[356542798,1742637065471,-606.96,0.00047671,120]
[356542799,1742637065481,-827.5,0.00047671,120]
[356542800,1742637065490,-666.85,0.00047671,120]
[356542801,1742637065500,-695.68,0.00047671,120]
[356542802,1742637065509,-500.0,0.00047671,120]
[356542803,1742637065518,-500.0,0.00047671,120]
[356542804,1742637065528,-1356.69,0.00047671,7]
[356542805,1742637065537,-1736.83,0.00047671,120]
[356542806,1742637065548,-913.27,0.00047671,120]
[356542807,1742637065557,-599.99,0.00047671,120]
[356542808,1742637065566,-456.700001,0.00047671,120]
[356542809,1742637065576,-500.0,0.00047671,120]
[356542810,1742637065585,-527.15,0.00047671,120]
[356542811,1742637065595,-500.0,0.00047671,120]
[356542812,1742637065605,-597.23,0.00047671,120]
[356542813,1742637065614,-501.82,0.00047671,120]
[356542814,1742637065623,-1106.0,0.00047671,120]
[356542815,1742637065633,-882.82,0.00047671,120]
[356542816,1742637065642,-1127.56,0.00047671,120]
[356542817,1742637065651,-500.0,0.00047671,120]
[356542818,1742637065660,-1089.93,0.00047671,7]
[356542819,1742637065669,-500.0,0.00047671,120]
[356542820,1742637065679,-502.2,0.00047671,120]
[356542821,1742637065689,-500.0,0.00047671,120]
[356542822,1742637065701,-1068.57,0.00047671,120]
[356542823,1742637065710,-1131.58,0.00047671,120]
[356542824,1742637065719,-529.97,0.00047671,120]
[356542825,1742637065728,-500.0,0.00047671,120]
[356542826,1742637065737,-559.18,0.00047671,120]
[356542827,1742637065747,-500.0,0.00047671,120]
[356542828,1742637065758,-1578.59,0.00047671,120]
[356542829,1742637065768,-5060.41,0.00047671,120]
[356542830,1742637065777,-500.0,0.00047671,120]
[356542831,1742637065787,-500.0,0.00047671,120]
[356542832,1742637065796,-938.19,0.00047671,120]
[356542833,1742637065806,-567.38,0.00047671,120]
[356542834,1742637065815,-617.69,0.00047671,120]
[356542835,1742637065825,-1439.24,0.00047671,120]
[356542836,1742637065835,-1288.21,0.00047671,120]
[356542837,1742637065844,-500.0,0.00047671,120]
[356542838,1742637065853,-3623.73,0.00047671,120]
[356542839,1742637065863,-1583.29,0.00047671,120]
[356542840,1742637065873,-1914.19,0.00047671,120]
[356542841,1742637065882,-500.0,0.00047671,120]
[356542842,1742637065891,-1724.46,0.00047671,120]
[356542843,1742637065901,-2003.91,0.00047671,100]
[356542844,1742637065911,-1585.84,0.00047671,120]
[356542845,1742637065920,-500.0,0.00047671,120]
[356542846,1742637065930,-2253.09,0.00047671,120]
[356542847,1742637065939,-500.0,0.00047671,120]
[356542848,1742637065949,-500.0,0.00047671,120]
[356542849,1742637065959,-645.37,0.00047671,120]
[356542850,1742637065968,-691.36,0.00047671,120]
[356542851,1742637065978,-817.6,0.00047671,120]
[356542852,1742637065987,-523.41,0.00047671,120]
[356542853,1742637065996,-1609.26,0.00047671,120]
[356542854,1742637066005,-1857.45,0.00047671,120]
[356542855,1742637066015,-1181.24,0.00047671,120]
[356542856,1742637066025,-592.73,0.00047671,120]
[356542857,1742637066035,-1111.56,0.00047671,120]
[356542858,1742637066043,-500.0,0.00047671,120]
[356542859,1742637066052,-500.0,0.00047671,120]
[356542860,1742637066062,-1095.08,0.00047671,120]
[356542861,1742637066071,-1041.52,0.00047671,120]
[356542862,1742637066080,-500.0,0.00047671,120]
[356542863,1742637066090,-624.9,0.00047671,120]
[356542864,1742637066099,-796.13,0.00047671,120]
[356542865,1742637066108,-500.0,0.00047671,120]
[356542866,1742637066117,-751.81,0.00047671,120]
[356542867,1742637066127,-722.59,0.00047671,120]
[356542868,1742637066136,-500.0,0.00047671,120]
[356542869,1742637066145,-554.28,0.00047671,120]
[356542870,1742637066155,-555.78,0.00047671,120]
[356542871,1742637066164,-500.0,0.00047671,120]
[356542872,1742637066174,-3273.79,0.00047671,120]
[356542873,1742637066183,-2930.96,0.00047671,120]
[356542874,1742637066192,-1052.7,0.00047671,120]
[356542875,1742637066202,-504.22,0.00047671,120]
[356542876,1742637066212,-500.0,0.00047671,120]
[356542877,1742637066221,-1485.55,0.00047671,120]
[356542878,1742637066230,-504.42,0.00047671,120]
[356542879,1742637066240,-500.0,0.00047671,120]
[356542880,1742637066249,-657.13,0.00047671,120]
[356542881,1742637066259,-1080.77,0.00047671,120]
[356542882,1742637066268,-500.0,0.00047671,120]
[356542883,1742637066277,-500.0,0.00047671,120]
[356542884,1742637066286,-517.31,0.00047671,120]
[356542885,1742637066296,-760.27,0.00047671,120]
[356542886,1742637066305,-899.53,0.00047671,120]
[356542887,1742637066315,-500.0,0.00047671,120]
[356542888,1742637066324,-500.0,0.00047671,120]
[356542889,1742637066339,-692.39,0.00047671,120]
[356542890,1742637066410,-500.0,0.00047671,120]
[356542891,1742637066420,-500.0,0.00047671,120]
[356542892,1742637066429,-555.67,0.00047671,120]
[356542893,1742637066438,-1026.62,0.00047671,120]
[356542894,1742637066448,-500.0,0.00047671,120]
[356542895,1742637066456,-291.60078913,0.00047671,120]
[356542896,1742637066466,-1504.12,0.00047671,120]
[356542897,1742637066475,-655.7,0.00047671,120]
[356542898,1742637066483,-500.0,0.00047671,120]
[356542899,1742637066492,-668.14,0.00047671,120]
[356542900,1742637066502,-500.0,0.00047671,20]
[356542901,1742637066511,-529.96,0.00047671,120]
[356542902,1742637066521,-595.26484659,0.00047671,120]
[356542903,1742637066531,-56672.48,0.00047671,120]
[356542904,1742637066540,-1785.62,0.00047671,120]
[356542905,1742637066549,-500.0,0.00047671,120]
[356542906,1742637066559,-874.3,0.00047671,120]
[356542907,1742637066568,-500.0,0.00047671,120]
[356542908,1742637066578,-892.9,0.00047671,120]
[356542909,1742637066587,-507.98,0.00047671,120]
[356542910,1742637066597,-767.43,0.00047671,120]
[356542911,1742637066606,-818.49,0.00047671,120]
[356542912,1742637066615,-574.58,0.00047671,120]
[356542913,1742637066625,-622.98,0.00047671,120]
[356542914,1742637066634,-400.36809904,0.00047671,120]
[356542915,1742637066644,-1187.99,0.00047671,120]
[356542916,1742637066654,-500.0,0.00047671,120]
[356542917,1742637066664,-594.34,0.00047671,120]
[356542918,1742637066673,-500.0,0.00047671,120]
[356542919,1742637066682,-724.76,0.00047671,120]
[356542920,1742637066692,-500.0,0.00047671,120]
[356542921,1742637066701,-554.79,0.00047671,120]
[356542922,1742637066710,-500.0,0.00047671,120]
[356542923,1742637066719,-864.88,0.00047671,120]
[356542924,1742637066729,-664.62,0.00047671,120]
[356542925,1742637066738,-870.55,0.00047671,120]
[356542926,1742637066747,-500.0,0.00047671,120]
[356542927,1742637066757,-3152.52,0.00047671,120]
[356542928,1742637066766,-500.0,0.00047671,120]
[356542929,1742637066776,-1001.37,0.00047671,120]
[356542930,1742637066785,-500.0,0.00047674,120]
[356542931,1742637066794,-2036.0,0.00047676,2]
[356542932,1742637066803,-1280.0,0.00047676,2]
[356542933,1742637066813,-1420.0,0.00047676,2]
[356542934,1742637066822,-1270.0,0.00047676,2]
[356542935,1742637066832,-906.398,0.00047676,2]
[356542936,1742637066841,-1429.0,0.00047676,2]
[356542937,1742637066851,-4084.0,0.00047676,2]
[356542938,1742637066860,-540.0,0.00047676,2]
[356542939,1742637066870,-156.72955192,0.00047687,120]
[356542940,1742637066880,-802.53,0.000477,34]
[356542941,1742637066889,-57084.90040432,0.0004773,15]
[356542942,1742637066898,-200.0,0.0004774,120]
[356542943,1742637066908,-550.0,0.000478,120]
[356542944,1742637066917,-156.72955192,0.00047845,120]
[356542945,1742637066927,-2000.0,0.00047863,8]
[356542946,1742637066936,-154.67186142,0.000479,120]
[356542947,1742637066945,-13700.99213118,0.000479,2]
[356542948,1742637066954,-985.8723389,0.000479,2]
[356542949,1742637066963,-500.0,0.00047944,120]
[356542950,1742637066972,-382.42758175,0.00047944,120]
[356542951,1742637066982,-644.01,0.00047944,120]
[356542952,1742637066991,-904.785999,0.00047945,120]
[356542953,1742637067001,-733.844647,0.00047945,120]
[356542954,1742637067010,-159.505277,0.00047945,120]
[356542955,1742637067021,-500.0,0.00047945,120]
[356542956,1742637067030,-500.0,0.00047945,120]
[356542957,1742637067039,-500.0,0.00047945,120]
[356542958,1742637067049,-739.16,0.00047945,120]
[356542959,1742637067058,-500.0,0.00047945,120]
[356542960,1742637067068,-500.0,0.00047945,120]
[356542961,1742637067077,-500.0,0.00047945,120]
[356542962,1742637067086,-500.0,0.00047945,120]
[356542963,1742637067095,-950.82,0.00047945,120]
[356542964,1742637067104,-500.0,0.00047945,120]
[356542965,1742637067114,-517.63,0.00047945,120]
[356542966,1742637067122,-500.0,0.00047945,120]
[356542967,1742637067132,-574.70290631,0.00047945,120]
[356542968,1742637067141,-1049.72,0.00047945,120]
[356542969,1742637067151,-653.69,0.00047945,120]
[356542970,1742637067160,-907.89,0.00047945,120]
[356542971,1742637067169,-600.62,0.00047945,120]
[356542972,1742637067178,-500.0,0.00047945,120]
[356542973,1742637067188,-500.0,0.00047945,120]
[356542974,1742637067198,-500.0,0.00047945,120]
[356542975,1742637067208,-500.0,0.00047945,120]
[356542976,1742637067217,-500.0,0.00047945,120]
[356542977,1742637067226,-500.0,0.00047945,120]
[356542978,1742637067235,-500.0,0.00047945,120]
[356542979,1742637067245,-500.0,0.00047945,120]
[356542980,1742637067254,-500.0,0.00047945,120]
[356542981,1742637067263,-500.0,0.00047945,120]
[356542982,1742637067273,-500.0,0.00047945,120]
[356542983,1742637067283,-501.22,0.00047945,120]
[356542984,1742637067292,-500.0,0.00047945,120]
[356542985,1742637067302,-500.0,0.00047945,120]
[356542986,1742637067311,-500.0,0.00047945,120]
[356542987,1742637067321,-761.07,0.00047945,120]
[356542988,1742637067333,-956.79,0.00047945,120]
[356542989,1742637067343,-500.0,0.00047945,120]
[356542990,1742637067353,-500.0,0.00047945,120]
[356542991,1742637067363,-500.0,0.00047945,120]
[356542992,1742637067372,-963.36,0.00047945,60]
[356542993,1742637067382,-782.21,0.00047945,120]
[356542994,1742637067391,-500.0,0.00047945,120]
[356542995,1742637067401,-584.06,0.00047945,120]
[356542996,1742637067411,-500.0,0.00047945,120]
[356542997,1742637067421,-500.0,0.00047945,2]
[356542998,1742637067430,-673.59,0.00047945,120]
[356542999,1742637067440,-500.0,0.00047945,120]
[356543000,1742637067449,-502.51,0.00047945,120]
[356543001,1742637067458,-500.0,0.00047945,120]
[356543002,1742637067467,-1473.31,0.00047945,120]
[356543003,1742637067478,-500.0,0.00047945,120]
[356543004,1742637067487,-163.44098452,0.00047945,120]
[356543005,1742637067496,-500.0,0.00047945,120]
[356543006,1742637067506,-500.0,0.00047945,120]
[356543007,1742637067515,-751.46,0.00047945,120]
[356543008,1742637067524,-1642.39,0.00047945,120]
[356543009,1742637067534,-654.04,0.00047945,120]
[356543010,1742637067544,-674.52,0.00047945,120]
[356543011,1742637067553,-520.54,0.00047945,120]
[356543012,1742637067569,-500.0,0.00047945,120]
[356543013,1742637067580,-500.0,0.00047945,120]
[356543014,1742637067589,-219.45741008,0.00047945,120]
[356543015,1742637067599,-781.34,0.00047945,120]
[356543016,1742637067608,-500.0,0.00047945,120]
[356543017,1742637067618,-532.16,0.00047945,120]
[356543018,1742637067627,-500.0,0.00047945,120]
[356543019,1742637067636,-500.0,0.00047945,120]
[356543020,1742637067646,-601.78,0.00047945,120]
[356543021,1742637067656,-500.0,0.00047945,120]
[356543022,1742637067665,-691.76,0.00047945,120]
[356543023,1742637067675,-500.0,0.00047945,120]
[356543024,1742637067684,-802.29,0.00047945,120]
[356543025,1742637067693,-500.0,0.00047945,120]
[356543026,1742637067702,-500.0,0.00047945,120]
[356543027,1742637067712,-607.45161676,0.00047945,120]
[356543028,1742637067722,-580.53,0.00047945,120]
[356543029,1742637067731,-2210.41,0.00047945,120]
[356543030,1742637067740,-328.6188556,0.00047945,120]
[356543031,1742637067750,-904.56,0.00047945,120]
[356543032,1742637067759,-500.0,0.00047945,120]
[356543033,1742637067769,-500.0,0.00047945,120]
[356543034,1742637067778,-793.91,0.00047945,120]
[356543035,1742637067787,-706.55,0.00047945,120]
[356543036,1742637067796,-834.3,0.00047945,120]
[356543037,1742637067805,-500.0,0.00047945,120]
[356543038,1742637067815,-671.78,0.00047945,120]
[356543039,1742637067824,-500.0,0.00047945,120]
[356543040,1742637067833,-500.0,0.00047945,120]
[356543041,1742637067842,-500.0,0.00047945,120]
[356543042,1742637067851,-562.37815705,0.00047945,120]
[356543043,1742637067861,-1807.75,0.00047945,120]
[356543044,1742637067870,-500.0,0.00047945,120]
[356543045,1742637067879,-500.0,0.00047945,120]
[356543046,1742637067889,-842.88,0.00047945,120]
[356543047,1742637067899,-500.0,0.00047945,120]
[356543048,1742637067908,-500.0,0.00047945,120]
[356543049,1742637067918,-500.0,0.00047945,120]
[356543050,1742637067927,-350.0,0.00047945,120]
[356543051,1742637067937,-965.16,0.00047945,120]
[356543052,1742637067946,-591.6,0.00047945,120]
[356543053,1742637067955,-1371.05,0.00047945,120]
[356543054,1742637067964,-1325.26,0.00047945,120]
[356543055,1742637067974,-558.56,0.00047945,120]
[356543056,1742637067983,-874.61,0.00047945,120]
[356543057,1742637067993,-902.88,0.00047945,120]
[356543058,1742637068003,-509.55,0.00047945,120]
[356543059,1742637068012,-500.0,0.00047945,120]
[356543060,1742637068021,-500.0,0.00047945,120]
[356543061,1742637068030,-500.0,0.00047945,120]
[356543062,1742637068039,-937.33,0.00047945,120]
[356543063,1742637068048,-500.0,0.00047945,120]
[356543064,1742637068058,-500.0,0.00047945,120]
[356543065,1742637068068,-1062.3,0.00047945,120]
[356543066,1742637068079,-600.78,0.00047945,120]
[356543067,1742637068090,-664.64,0.00047945,120]
[356543068,1742637068099,-668.71,0.00047945,120]
[356543069,1742637068110,-564.64,0.00047945,120]
[356543070,1742637068119,-1070.64,0.00047945,120]
[356543071,1742637068129,-979.48,0.00047945,120]
[356543072,1742637068138,-800.83,0.00047945,120]
[356543073,1742637068147,-500.0,0.00047945,120]
[356543074,1742637068157,-698.39,0.00047945,120]
[356543075,1742637068166,-500.0,0.00047945,120]
[356543076,1742637068176,-680.79,0.00047945,120]
[356543077,1742637068186,-514.68,0.00047945,120]
[356543078,1742637068195,-536.4,0.00047945,120]
[356543079,1742637068205,-500.0,0.00047945,120]
[356543080,1742637068214,-500.0,0.00047945,120]
[356543081,1742637068224,-500.0,0.00047945,120]
[356543082,1742637068233,-500.0,0.00047945,120]
[356543083,1742637068242,-500.0,0.00047945,120]
[356543084,1742637068251,-661.88,0.00047945,120]
[356543085,1742637068260,-500.0,0.00047945,120]
[356543086,1742637068269,-500.0,0.00047945,120]
[356543087,1742637068279,-500.0,0.00047945,120]
[356543088,1742637068288,-500.0,0.00047945,120]
[356543089,1742637068297,-730.9,0.00047945,120]
[356543090,1742637068306,-1058.49,0.00047945,120]
[356543091,1742637068316,-500.0,0.00047945,120]
[356543092,1742637068325,-1233.22,0.00047945,120]
[356543093,1742637068340,-1327.63,0.00047945,120]
[356543094,1742637068349,-520.32,0.00047945,120]
[356543095,1742637068358,-896.4,0.00047945,120]
[356543096,1742637068367,-1347.94,0.00047945,120]
[356543097,1742637068378,-597.81,0.00047945,120]
[356543098,1742637068387,-500.0,0.00047945,120]
[356543099,1742637068397,-788.73,0.00047945,120]
[356543100,1742637068407,-500.0,0.00047945,120]
[356543101,1742637068418,-500.0,0.00047945,120]
[356543102,1742637068428,-2023.49,0.00047945,120]
[356543103,1742637068437,-625.69,0.00047945,120]
[356543104,1742637068446,-1415.42,0.00047945,120]
[356543105,1742637068456,-556.5,0.00047945,120]
[356543106,1742637068465,-839.81,0.00047945,120]
[356543107,1742637068475,-500.0,0.00047945,120]
[356543108,1742637068484,-1500.0,0.00047945,120]
[356543109,1742637068493,-813.54,0.00047945,120]
[356543110,1742637068502,-570.18,0.00047945,120]
[356543111,1742637068511,-500.0,0.00047945,120]
[356543112,1742637068520,-500.0,0.00047945,120]
[356543113,1742637068529,-500.0,0.00047945,120]
[356543114,1742637068538,-500.0,0.00047945,120]
[356543115,1742637068547,-621.41,0.00047945,120]
[356543116,1742637068556,-300.0,0.00047945,120]
[356543117,1742637068565,-713.81,0.00047945,120]
[356543118,1742637068574,-500.0,0.00047945,120]
[356543119,1742637068584,-500.0,0.00047945,120]
[356543120,1742637068593,-1159.44,0.00047945,10]
[356543121,1742637068603,-639.03,0.00047945,120]
[356543122,1742637068612,-500.0,0.00047945,120]
[356543123,1742637068621,-521.66,0.00047945,120]
[356543124,1742637068631,-1837.38,0.00047945,120]
[356543125,1742637068640,-500.0,0.00047945,120]
[356543126,1742637068650,-500.0,0.00047945,120]
[356543127,1742637068659,-500.0,0.00047945,120]
[356543128,1742637068668,-500.0,0.00047945,120]
[356543129,1742637068678,-500.0,0.00047945,120]
[356543130,1742637068688,-500.0,0.00047945,120]
[356543131,1742637068697,-500.0,0.00047945,120]
[356543132,1742637068707,-872.68,0.00047945,120]
[356543133,1742637068716,-500.0,0.00047945,120]
[356543134,1742637068725,-500.0,0.00047945,120]
[356543135,1742637068735,-815.59,0.00047945,120]
[356543136,1742637068745,-500.0,0.00047945,120]
[356543137,1742637068754,-564.59,0.00047945,120]
[356543138,1742637068764,-500.0,0.00047945,120]
[356543139,1742637068773,-192.09322246,0.00047945,120]
[356543140,1742637068783,-500.0,0.00047945,120]
[356543141,1742637068793,-412.08018342,0.00047945,120]
[356543142,1742637068803,-500.0,0.00047945,120]
[356543143,1742637068813,-629.6,0.00047945,120]
[356543144,1742637068822,-1219.87,0.00047945,120]
[356543145,1742637068832,-511.1,0.00047945,120]
[356543146,1742637068842,-500.0,0.00047945,120]
[356543147,1742637068852,-500.0,0.00047945,120]
[356543148,1742637068862,-500.0,0.00047945,120]
[356543149,1742637068871,-500.0,0.00047945,120]
[356543150,1742637068881,-973.06,0.00047945,120]
[356543151,1742637068891,-500.0,0.00047945,120]
[356543152,1742637068901,-624.39,0.00047945,120]
[356543153,1742637068911,-500.0,0.00047945,120]
[356543154,1742637068920,-1923.34,0.00047945,120]
[356543155,1742637068930,-500.0,0.00047945,120]
[356543156,1742637068940,-820.19,0.00047945,120]
[356543157,1742637068950,-564.23,0.00047945,120]
[356543158,1742637068960,-665.21,0.00047945,120]
[356543159,1742637068969,-500.0,0.00047945,120]
[356543160,1742637068979,-500.0,0.00047945,120]
[356543161,1742637068988,-1241.85,0.00047945,120]
[356543162,1742637068998,-500.0,0.00047945,120]
[356543163,1742637069007,-500.0,0.00047945,120]
[356543164,1742637069016,-619.76,0.00047945,120]
[356543165,1742637069026,-500.0,0.00047945,120]
[356543166,1742637069036,-500.0,0.00047945,120]